fUST/lending_fUST_20240922
["ID","MTS","AMOUNT","RATE_DAILY","PERIOD"]
[338879030,1726990241321,-500.0,0.00028399,2]
[338879031,1726990241331,-534.42772697,0.00028399,2]
[338879032,1726990241343,-500.0,0.00028399,2]
[338879033,1726990241355,-500.0,0.00028399,2]
[338879034,1726990241365,-500.0,0.00028399,2]
[338879035,1726990241377,-500.0,0.00028399,2]
[338879036,1726990241387,-500.0,0.00028399,2]
[338879037,1726990241400,-500.0,0.00028399,2]
[338879038,1726990241410,-500.0,0.00028399,2]
[338879039,1726990241419,-500.0,0.00028399,2]
[338879040,1726990241428,-500.0,0.00028399,2]
[338879041,1726990241437,-500.0,0.00028399,2]
[338879042,1726990241446,-500.0,0.00028399,2]
[338879043,1726990241455,-500.0,0.00028399,2]
[338879044,1726990241465,-500.0,0.00028399,2]
[338879045,1726990241475,-500.0,0.00028399,2]
[338879046,1726990241486,-500.0,0.00028399,2]
[338879047,1726990241498,-500.0,0.00028399,2]
[338879048,1726990241508,-150.0,0.000284,2]
[338879049,1726990241519,-3734.32704085,0.000284,60]
[338879050,1726990241529,-214.783017,0.000284,7]
[338879051,1726990241540,-214.783017,0.000284,7]
[338879052,1726990241551,-151.0,0.000284,7]
[338879053,1726990241561,-151.0,0.000284,7]
[338879054,1726990241570,-187.031912,0.000284,7]
[338879055,1726990241580,-187.031912,0.000284,7]
[338879056,1726990241591,-310.0,0.000285,120]
[338879057,1726990241603,-150.0,0.00028545,5]
[338879058,1726990241612,-306.0,0.00028575,2]
[338879059,1726990241622,-4918.26,0.00028676,3]
[338879060,1726990241631,-2459.14,0.00028676,3]
[338879061,1726990241642,-1229.56,0.00028676,3]
[338879062,1726990241654,-500.0,0.000287,5]
[338879063,1726990241664,-151.0,0.00028715,7]
[338879064,1726990241673,-151.0,0.00028715,7]
[338879065,1726990241683,-172.83186,0.00028715,7]
[338879066,1726990241694,-151.0,0.00028715,7]
[338879067,1726990241704,-48211.0987947,0.00028716,4]
[338879068,1726990241714,-2792.92225118,0.00028716,4]
[338879069,1726990241725,-214.783017,0.00028716,7]
[338879070,1726990241735,-214.783017,0.00028716,7]
[338879071,1726990241746,-151.0,0.00028716,7]
[338879072,1726990241755,-246.581251,0.00028716,7]
[338879073,1726990241765,-187.031912,0.00028716,7]
[338879074,1726990241775,-187.031912,0.00028716,7]
[338879075,1726990241784,-151.0,0.00028716,7]
[338879076,1726990241794,-153.918625,0.00028716,7]
[338879077,1726990241803,-310.0,0.000288,120]
[338879078,1726990241812,-153.0,0.00028849,2]
[338879079,1726990241822,-153.0,0.00028849,2]
[338879080,1726990241831,-153.0,0.00028849,2]
[338879081,1726990241841,-32299.40396983,0.0002889,3]
[338879082,1726990241850,-200.0,0.00028899,2]
[338879083,1726990241859,-1919.89294629,0.00028899,2]
[338879084,1726990241870,-5713.40466363,0.000289,2]
[338879089,1726990243272,-5734.36946155,0.000289,2]
[338879090,1726990243370,-3489.59752923,0.000289,2]
[338879091,1726990243391,-9608.82583568,0.000289,2]
[338879102,1726990246457,-57.58667501,0.00028027,2]
[338879106,1726990336148,187.55718711,0.00025,30]
[338879107,1726990349305,500.0,0.00025,30]
[338879108,1726990349810,500.0,0.00021,30]
[338879109,1726990351860,500.0,0.00025,30]
[338879110,1726990352199,500.0,0.00025,30]
[338879111,1726990352574,500.0,0.00025,30]
[338879112,1726990352967,500.0,0.00025,30]
[338879131,1726991131145,-500.0,0.00021,30]
[338879132,1726991131167,-500.0,0.00021,30]
[338879133,1726991131190,-500.0,0.00021,30]
[338879134,1726991131212,-500.0,0.00021,30]
[338879135,1726991131233,-426.89098236,0.00021,30]
[338879139,1726991225105,-73.10901764,0.00021,30]
[338879140,1726991225128,-509.66959947,0.00021,30]
[338879141,1726991225152,-150.0,0.00021,2]
[338879142,1726991225174,-500.0,0.00025,30]
[338879143,1726991225196,-500.0,0.00025,30]
[338879144,1726991225219,-500.0,0.00025,30]
[338879145,1726991225242,-500.0,0.00025,30]
[338879146,1726991225266,-1505.76,0.00025,30]
[338879147,1726991225288,-500.0,0.00025,30]
[338879148,1726991225320,-215.976463,0.00025935,2]
[338879149,1726991225341,-211.0,0.00026,2]
[338879150,1726991225363,-1979.8640537,0.00026387,2]
[338879151,1726991225385,-349.8385552,0.00026471,2]
[338879152,1726991225419,-255.83502398,0.00026696,2]
[338879153,1726991225445,-510.2877365,0.00026711,2]
[338879154,1726991225466,-300.0,0.00027,2]
[338879155,1726991225488,-169.0,0.00027,2]
[338879156,1726991225509,-476.96764936,0.0002777,5]
[338879157,1726991230115,-23.03235064,0.0002777,5]
[338879158,1726991230136,-756.29006447,0.00027775,8]
[338879159,1726991230158,-200.0,0.00027798,2]
[338879160,1726991230181,-488.39294763,0.0002787,18]
[338879161,1726991239114,-187.5500757,0.0002787,18]
[338879168,1726991357734,166.666666,0.00026933,2]
[338879170,1726991361462,200.0,0.0002696,2]
[338879206,1726991437898,604.85087712,0.00026664,6]
[338879247,1726991438972,-200.0,0.00026987,2]
[338879248,1726991438982,-2372.1031078,0.00027293,2]
[338879249,1726991438991,-605.09245813,0.00027564,6]
[338879250,1726991439001,-155.06030656,0.0002784,8]
[338879251,1726991439011,-755.18171761,0.0002787,18]
[338879252,1726991439022,-300.0,0.00028,2]
[338879253,1726991439031,-200.0,0.00028,2]
[338879254,1726991439040,-2.80397635,0.00028022,2]
[338879255,1726991439056,-462.93895111,0.00028022,2]
[338879256,1726991439066,-850.11274011,0.00028398,22]
[338879263,1726991440314,-381.88725989,0.00028398,22]
[338879264,1726991440324,-442.0140458,0.00028603,2]
[338879265,1726991440333,-1376.0,0.00028688,36]
[338879266,1726991440342,-150.0,0.000288,2]
[338879267,1726991440352,-178.11013574,0.000288,20]
[338879268,1726991440361,-622.69670867,0.00028829,2]
[338879269,1726991440370,-200.0,0.00028858,2]
[338879270,1726991440495,-150.0,0.00028873,5]
[338879271,1726991440506,-151.0,0.00028879,7]
[338879272,1726991440516,-151.0,0.00028879,7]
[338879273,1726991440525,-254.216665,0.00028879,7]
[338879274,1726991440534,-179.31,0.0002889,3]
[338879275,1726991440543,-217.74,0.0002889,3]
[338879276,1726991440553,-653.23,0.0002889,3]
[338879277,1726991440562,-15573.81,0.0002889,3]
[338879278,1726991440572,-12978.18,0.0002889,3]
[338879279,1726991440581,-9151.69062871,0.0002889,3]
[338879284,1726991443402,-1663.45937129,0.0002889,3]
[338879285,1726991443412,-1919.89294629,0.00028899,2]
[338879286,1726991443423,-6470.98029603,0.00028899,3]
[338879287,1726991443508,-2623.95970397,0.00028899,3]
[338879288,1726991443520,-138922.40520658,0.000289,2]
[338879289,1726991443532,-264.46625028,0.000289,2]
[338879291,1726991443544,-796.81624783,0.000289,2]
[338879294,1726991443556,-3586.63888426,0.000289,2]
[338879296,1726991443569,-609.51885624,0.000289,2]
[338879313,1726991446453,-20.8388973,0.000289,2]
[338879314,1726991446467,-261.81,0.000289,2]
[338879316,1726991471600,184.247716,0.00026018,2]
[338879319,1726991537819,5000.0,0.00025,3]
[338879321,1726991542537,989.03192254,0.00025,30]
[338879326,1726992340109,-499.02004876,0.00016,2]
[338879330,1726992425116,-500.97995124,0.00016,2]
[338879331,1726992425150,-223.32583465,0.00016,2]
[338879332,1726992450123,-776.67416535,0.00016,2]
[338879333,1726992450147,-1001.0,0.00016,2]
[338879334,1726992450169,-300.0,0.00020999,2]
[338879335,1726992450191,-300.0,0.00020999,2]
[338879336,1726992450213,-1821.89146102,0.00021,2]
[338879337,1726992451103,-2098.36821498,0.00021,2]
[338879338,1726992451127,-420.0,0.00022842,2]
[338879339,1726992451149,-420.0,0.00023099,2]
[338879340,1726992451171,-23.06550862,0.00023909,2]
[338879342,1726992545096,-143.60115738,0.00023909,2]
[338879343,1726992545117,-200.0,0.00024658,15]
[338879344,1726992545141,-164.941853,0.00024793,2]
[338879345,1726992545163,-732.72265417,0.000249,2]
[338879346,1726992545184,-740.64535804,0.000249,2]
[338879347,1726992545207,-164.941853,0.00024901,2]
[338879348,1726992545228,-5000.0,0.00025,3]
[338879349,1726992545251,-783.16349664,0.00025,30]
[338879350,1726992545272,-284.81216725,0.00025,30]
[338879351,1726992545295,-164.941853,0.00025008,2]
[338879352,1726992545316,-732.72265404,0.00025091,2]
[338879353,1726992545339,-164.941853,0.00025116,2]
[338879354,1726992545363,-164.941853,0.00025224,2]
[338879355,1726992545386,-732.72265404,0.00025282,2]
[338879356,1726992545413,-164.941853,0.00025331,2]
[338879357,1726992545436,-164.941853,0.00025439,2]
[338879358,1726992545457,-620.03311414,0.00025462,2]
[338879359,1726992545478,-732.72265404,0.00025473,2]
[338879360,1726992545500,-164.941853,0.00025547,2]
[338879361,1726992545521,-164.941853,0.00025654,2]
[338879362,1726992545543,-26.1421487,0.00025664,2]
[338879364,1726992559102,-706.58050534,0.00025664,2]
[338879365,1726992559125,-164.941853,0.00025762,2]
[338879366,1726992559147,-732.72265404,0.00025855,2]
[338879367,1726992559170,-164.941853,0.0002587,2]
[338879368,1726992572152,-164.941853,0.00025977,2]
[338879370,1726992630987,453.77403868,0.00025847,4]
[338879471,1726992638831,-164.941853,0.00026085,2]
[338879472,1726992638841,-155.954589,0.00026106,4]
[338879473,1726992638851,-623.1390591,0.00026301,2]
[338879474,1726992638861,-6528.05311621,0.00026704,2]
[338879477,1726992640607,-329.04819151,0.00026704,2]
[338879478,1726992640620,-18042.89869228,0.00026704,2]
[338879479,1726992640630,-200.0,0.00027,120]
[338879480,1726992640639,-787.75638241,0.00027093,2]
[338879481,1726992640648,-234.338689,0.00027225,2]
[338879482,1726992640658,-732.72265404,0.00027384,2]
[338879483,1726992640668,-500.0,0.00027397,2]
[338879484,1726992640677,-500.0,0.00027397,2]
[338879485,1726992640687,-500.0,0.00027397,2]
[338879486,1726992640697,-500.0,0.00027397,2]
[338879487,1726992640710,-500.0,0.00027397,2]
[338879488,1726992640720,-508.91653452,0.00027397,2]
[338879489,1726992640730,-500.0,0.00027397,2]
[338879490,1726992640740,-500.0,0.00027397,2]
[338879491,1726992640749,-500.0,0.00027397,2]
[338879492,1726992640759,-500.0,0.00027397,2]
[338879493,1726992640770,-500.0,0.00027397,2]
[338879494,1726992640779,-500.0,0.00027397,2]
[338879495,1726992640791,-500.0,0.00027397,2]
[338879496,1726992640801,-500.0,0.00027397,2]
[338879497,1726992640811,-500.0,0.00027397,2]
[338879498,1726992640821,-206.39961748,0.00027397,2]
[338879499,1726992640830,-732.72265404,0.00027575,2]
[338879500,1726992640840,-732.72265404,0.00027766,2]
[338879501,1726992640849,-732.72265404,0.00027957,2]
[338879502,1726992640858,-155.5763631,0.00028027,2]
[338879503,1726992640868,-732.72265404,0.00028148,2]
[338879504,1726992640878,-732.72265404,0.00028339,2]
[338879505,1726992640887,-732.72265404,0.0002853,2]
[338879506,1726992640897,-7139.2745635,0.00028698,2]
[338879507,1726992640906,-184.897743,0.00028739,2]
[338879508,1726992640916,-1000.0,0.0002875,2]
[338879509,1726992640926,-88888.0,0.0002875,3]
[338879510,1726992640935,-292.94369046,0.0002875,2]
[338879511,1726992640945,-178.11,0.00028768,20]
[338879512,1726992640955,-150.0,0.000288,2]
[338879513,1726992640964,-234.81,0.00028818,3]
[338879514,1726992640973,-13507.98,0.00028819,3]
[338879515,1726992640983,-704.45,0.00028828,3]
[338879516,1726992640992,-19275.45,0.00028828,3]
[338879517,1726992641002,-23130.54,0.00028829,3]
[338879518,1726992641011,-330.92758925,0.00028838,2]
[338879519,1726992641020,-500.0,0.00028838,2]
[338879520,1726992641029,-200.27127624,0.00028838,2]
[338879521,1726992641039,-234.33215382,0.00028838,2]
[338879522,1726992641048,-311.62845797,0.00028838,2]
[338879523,1726992641057,-500.0,0.00028838,2]
[338879524,1726992641066,-500.0,0.00028838,2]
[338879525,1726992641075,-500.0,0.00028838,2]
[338879526,1726992641084,-500.0,0.00028838,2]
[338879527,1726992641093,-500.0,0.00028838,2]
[338879528,1726992641103,-500.0,0.00028838,2]
[338879529,1726992641112,-500.0,0.00028838,2]
[338879530,1726992641122,-500.0,0.00028838,2]
[338879531,1726992641131,-500.0,0.00028838,2]
[338879532,1726992641140,-500.0,0.00028838,2]
[338879533,1726992641150,-642.90331536,0.00028838,2]
[338879534,1726992641159,-500.0,0.00028838,2]
[338879535,1726992641168,-500.0,0.00028838,2]
[338879536,1726992641177,-500.0,0.00028838,2]
[338879537,1726992641186,-500.0,0.00028838,2]
[338879538,1726992641196,-500.0,0.00028838,2]
[338879539,1726992641206,-500.0,0.00028838,2]
[338879540,1726992641215,-500.0,0.00028838,2]
[338879541,1726992641225,-500.0,0.00028838,2]
[338879542,1726992641234,-500.0,0.00028838,2]
[338879543,1726992641244,-500.0,0.00028838,2]
[338879544,1726992641253,-500.0,0.00028838,2]
[338879545,1726992641262,-500.0,0.00028838,2]
[338879546,1726992641272,-500.0,0.00028838,2]
[338879547,1726992641281,-500.0,0.00028838,2]
[338879548,1726992641291,-500.0,0.00028838,2]
[338879549,1726992641301,-500.0,0.00028838,2]
[338879550,1726992641310,-500.0,0.00028838,2]
[338879551,1726992641319,-500.0,0.00028838,2]
[338879552,1726992641328,-500.0,0.00028838,2]
[338879553,1726992641337,-500.0,0.00028838,2]
[338879554,1726992641346,-500.0,0.00028838,2]
[338879555,1726992641355,-500.0,0.00028838,2]
[338879556,1726992641365,-500.0,0.00028838,2]
[338879557,1726992641374,-500.0,0.00028838,2]
[338879558,1726992641384,-500.0,0.00028838,2]
[338879559,1726992641393,-500.0,0.00028838,2]
[338879560,1726992641403,-553.44277269,0.00028838,2]
[338879561,1726992641412,-500.0,0.00028838,2]
[338879562,1726992641422,-500.0,0.00028838,2]
[338879563,1726992641431,-500.0,0.00028838,2]
[338879564,1726992641441,-500.0,0.00028838,2]
[338879565,1726992641452,-500.0,0.00028838,2]
[338879566,1726992641462,-500.0,0.00028838,2]
[338879567,1726992641471,-500.0,0.00028838,2]
[338879568,1726992641481,-500.0,0.00028838,2]
[338879569,1726992641491,-500.0,0.00028838,2]
[338879570,1726992641501,-500.0,0.00028838,2]
[338879571,1726992641511,-500.0,0.00028838,2]
[338879572,1726992641521,-500.0,0.00028838,2]
[338879573,1726992641531,-500.0,0.00028838,2]
[338879574,1726992641540,-500.0,0.00028838,2]
[338879575,1726992641550,-500.0,0.00028838,2]
[338879576,1726992641559,-500.0,0.00028838,2]
[338879577,1726992641569,-500.0,0.00028838,2]
[338879578,1726992641579,-500.0,0.00028838,2]
[338879579,1726992641588,-500.0,0.00028838,2]
[338879580,1726992641597,-500.0,0.00028838,2]
[338879581,1726992641607,-500.0,0.00028838,2]
[338879582,1726992641616,-500.0,0.00028838,2]
[338879583,1726992641626,-500.0,0.00028838,2]
[338879584,1726992641635,-500.0,0.00028838,2]
[338879585,1726992641645,-500.0,0.00028838,2]
[338879586,1726992641654,-500.0,0.00028838,2]
[338879587,1726992641770,-500.0,0.00028838,2]
[338879588,1726992641780,-500.0,0.00028838,2]
[338879589,1726992641790,-400.0,0.00028838,2]
[338879590,1726992641799,-500.0,0.00028838,2]
[338879591,1726992641808,-48523.185393,0.00028838,4]
[338879592,1726992641817,-1458.39694359,0.00028838,4]
[338879610,1726992646518,-6113.91406006,0.00028829,3]
[338879611,1726992646530,-7552.67579476,0.00028829,3]
[338879612,1726992646570,-748.63913344,0.00028829,3]
[338879614,1726992748697,615.18783275,0.00021,30]
[338879615,1726992751113,500.0,0.00021,30]
[338879618,1726993046276,500.0,0.00021,30]
[338879620,1726993203727,625.0,0.00025,120]
[338879627,1726993647157,-256.45292899,0.0002091,2]
[338879628,1726993647178,-3000.0,0.00021,2]
[338879629,1726993647200,-4204.694088,0.0002101,2]
[338879630,1726993647221,-256.45292891,0.0002132,2]
[338879631,1726993647242,-256.45292891,0.0002173,2]
[338879632,1726993647263,-256.45292891,0.0002214,2]
[338879633,1726993647283,-256.45292891,0.0002255,2]
[338879634,1726993647303,-256.45292891,0.00022959,2]
[338879635,1726993647322,-256.45292891,0.00023369,2]
[338879636,1726993647342,-300.0,0.00023371,2]
[338879637,1726993647362,-300.0,0.00023371,2]
[338879638,1726993647382,-333.45546578,0.00023372,2]
[338879639,1726993651140,-1018.34160724,0.00023372,2]
[338879640,1726993651160,-256.45292891,0.00023779,2]
[338879641,1726993651181,-256.45292891,0.00024189,2]
[338879642,1726993651202,-264.4424824,0.00024224,2]
[338879643,1726993651223,-202.45824948,0.0002424,2]
[338879644,1726993652137,-49.44605652,0.0002424,2]
[338879645,1726993652158,-247.31897638,0.00024599,2]
[338879649,1726993746098,-300.0,0.00024999,2]
[338879650,1726993746127,-250.58802513,0.00025,30]
[338879651,1726993746152,-500.0,0.00025,30]
[338879652,1726993746175,-500.0,0.00025,30]
[338879653,1726993746197,-500.0,0.00025,30]
[338879654,1726993746221,-500.0,0.00025,30]
[338879655,1726993746242,-200.0,0.00025001,2]
[338879656,1726993746262,-2736.8774801,0.00025157,2]
[338879657,1726993749809,200.0,0.00025182,2]
[338879658,1726993755110,-166.666666,0.00025623,2]
[338879659,1726993755134,-200.0,0.00025772,15]
[338879660,1726993755160,-250.0,0.00025798,2]
[338879661,1726993755184,-7383.8563154,0.00025811,2]
[338879662,1726993755213,-225.000004,0.00025819,2]
[338879663,1726993767112,-329.7021918,0.00026034,2]
[338879664,1726993767135,-380.0,0.00026227,2]
[338879665,1726993767160,-660.0,0.00026301,2]
[338879666,1726993767181,-166.666666,0.00026322,2]
[338879668,1726993792850,222.621754,0.00026755,2]
[338879724,1726993831655,-166.666666,0.0002702,2]
[338879726,1726993831664,-151.39195539,0.00027064,2]
[338879728,1726993831674,-225.000004,0.00027164,2]
[338879730,1726993831684,-151.39195539,0.00027166,2]
[338879732,1726993831694,-153.0,0.00027205,2]
[338879734,1726993831704,-153.0,0.00027205,2]
[338879736,1726993831713,-153.0,0.00027205,2]
[338879738,1726993831723,-153.0,0.00027205,2]
[338879740,1726993831732,-500.0,0.00027397,120]
[338879741,1726993831742,-260.0,0.000276,2]
[338879742,1726993831751,-166.666666,0.00027719,2]
[338879743,1726993831872,-260.0,0.000279,2]
[338879744,1726993831883,-153.0,0.00028027,2]
[338879745,1726993831892,-153.0,0.00028027,2]
[338879746,1726993831902,-300.0,0.00028077,2]
[338879747,1726993831912,-248.413325,0.00028078,2]
[338879748,1726993831921,-153.0,0.00028078,2]
[338879749,1726993831930,-153.0,0.00028078,2]
[338879750,1726993831940,-205.88476079,0.000282,120]
[338879783,1726993837797,-151.39195539,0.00027267,2]
[338879784,1726993837808,-54.11523921,0.000282,120]
[338879785,1726993837817,-166.666666,0.00028418,2]
[338879786,1726993837827,-260.0,0.000285,120]
[338879787,1726993837836,-689.2868346,0.00028688,2]
[338879788,1726993837845,-163.42965176,0.00028708,2]
[338879789,1726993837855,-292.94369046,0.00028708,2]
[338879790,1726993837865,-119.24713596,0.00028708,7]
[338879791,1726993837908,-54.49393451,0.00028708,7]
[338879792,1726993837917,-173.74107047,0.00028708,7]
[338879793,1726993837926,-173.74107047,0.00028708,7]
[338879794,1726993837935,-173.74107047,0.00028708,7]
[338879795,1726993837945,-173.74107047,0.00028708,7]
[338879796,1726993837954,-174.24,0.00028708,7]
[338879797,1726993837963,-208.56428456,0.00028708,7]
[338879798,1726993837972,-208.56428456,0.00028708,7]
[338879799,1726993837981,-208.56428456,0.00028708,7]
[338879800,1726993837990,-208.56428456,0.00028708,7]
[338879801,1726993837999,-208.56428456,0.00028708,7]
[338879803,1726993838008,-208.56428456,0.00028708,7]
[338879805,1726993838018,-208.56428456,0.00028708,7]
[338879806,1726993838027,-208.56428456,0.00028708,7]
[338879807,1726993838036,-208.56428456,0.00028708,7]
[338879808,1726993838046,-208.56428456,0.00028708,7]
[338879809,1726993838055,-180.51070374,0.00028708,7]
[338879810,1726993838064,-180.51070374,0.00028708,7]
[338879811,1726993838073,-181.01,0.00028708,7]
[338879812,1726993838082,-154.83060321,0.00028708,7]
[338879813,1726993838091,-154.83060321,0.00028708,7]
[338879814,1726993838101,-154.83060321,0.00028708,7]
[338879815,1726993838110,-154.83060321,0.00028708,7]
[338879816,1726993838119,-154.83060321,0.00028708,7]
[338879817,1726993838128,-154.83060321,0.00028708,7]
[338879818,1726993838138,-154.83060321,0.00028708,7]
[338879819,1726993838147,-984.85555914,0.00028719,2]
[338879820,1726993838156,-178.11,0.00028728,20]
[338879821,1726993838168,-704.43,0.00028788,3]
[338879822,1726993838177,-22979.34,0.00028788,3]
[338879823,1726993838187,-9827.6272073,0.00028788,3]
[338879824,1726993838199,-666.86176342,0.00028788,3]
[338879832,1726993839665,-151.39195539,0.00027369,2]
[338879833,1726993839679,-8654.96102928,0.00028788,3]
[338879834,1726993839689,-330.92758925,0.00028797,2]
[338879835,1726993839698,-200.27127624,0.00028797,2]
[338879836,1726993839708,-311.62845797,0.00028797,2]
[338879837,1726993839718,-234.33215382,0.00028797,2]
[338879838,1726993839728,-500.0,0.00028797,2]
[338879839,1726993839737,-500.0,0.00028797,2]
[338879840,1726993839747,-500.0,0.00028797,2]
[338879841,1726993839756,-500.0,0.00028797,2]
[338879842,1726993839766,-500.0,0.00028797,2]
[338879843,1726993839775,-500.0,0.00028797,2]
[338879844,1726993839785,-500.0,0.00028797,2]
[338879845,1726993839794,-500.0,0.00028797,2]
[338879846,1726993839803,-500.0,0.00028797,2]
[338879847,1726993839812,-500.0,0.00028797,2]
[338879848,1726993839821,-500.0,0.00028797,2]
[338879849,1726993839830,-500.0,0.00028797,2]
[338879850,1726993839839,-500.0,0.00028797,2]
[338879851,1726993839849,-500.0,0.00028797,2]
[338879852,1726993839858,-500.0,0.00028797,2]
[338879853,1726993839867,-500.0,0.00028797,2]
[338879854,1726993839876,-500.0,0.00028797,2]
[338879855,1726993839886,-500.0,0.00028797,2]
[338879856,1726993839895,-500.0,0.00028797,2]
[338879857,1726993839905,-500.0,0.00028797,2]
[338879858,1726993839916,-500.0,0.00028797,2]
[338879859,1726993839928,-500.0,0.00028797,2]
[338879860,1726993839938,-500.0,0.00028797,2]
[338879861,1726993839949,-500.0,0.00028797,2]
[338879862,1726993839959,-500.0,0.00028797,2]
[338879863,1726993839968,-500.0,0.00028797,2]
[338879864,1726993839977,-500.0,0.00028797,2]
[338879865,1726993839986,-500.0,0.00028797,2]
[338879866,1726993839996,-500.0,0.00028797,2]
[338879867,1726993840005,-500.0,0.00028797,2]
[338879868,1726993840015,-500.0,0.00028797,2]
[338879869,1726993840025,-500.0,0.00028797,2]
[338879870,1726993840034,-500.0,0.00028797,2]
[338879871,1726993840043,-500.0,0.00028797,2]
[338879872,1726993840052,-500.0,0.00028797,2]
[338879873,1726993840061,-500.0,0.00028797,2]
[338879874,1726993840070,-500.0,0.00028797,2]
[338879875,1726993840079,-500.0,0.00028797,2]
[338879876,1726993840088,-500.0,0.00028797,2]
[338879877,1726993840097,-500.0,0.00028797,2]
[338879878,1726993840106,-500.0,0.00028797,2]
[338879879,1726993840116,-500.0,0.00028797,2]
[338879880,1726993840125,-500.0,0.00028797,2]
[338879881,1726993840134,-500.0,0.00028797,2]
[338879882,1726993840144,-500.0,0.00028797,2]
[338879883,1726993840153,-500.0,0.00028797,2]
[338879884,1726993840165,-500.0,0.00028797,2]
[338879885,1726993840174,-500.0,0.00028797,2]
[338879886,1726993840184,-500.0,0.00028797,2]
[338879887,1726993840193,-500.0,0.00028797,2]
[338879888,1726993840202,-242.90331536,0.00028797,2]
[338879889,1726993840211,-500.0,0.00028797,2]
[338879890,1726993840221,-553.44277269,0.00028797,2]
[338879891,1726993840230,-500.0,0.00028797,2]
[338879892,1726993840240,-500.0,0.00028797,2]
[338879893,1726993840249,-500.0,0.00028797,2]
[338879894,1726993840258,-500.0,0.00028797,2]
[338879895,1726993840268,-500.0,0.00028797,2]
[338879896,1726993840277,-500.0,0.00028797,2]
[338879897,1726993840287,-500.0,0.00028797,2]
[338879898,1726993840296,-500.0,0.00028797,2]
[338879899,1726993840308,-500.0,0.00028797,2]
[338879900,1726993840320,-500.0,0.00028797,2]
[338879901,1726993840332,-500.0,0.00028797,2]
[338879902,1726993840344,-500.0,0.00028797,2]
[338879903,1726993840355,-500.0,0.00028797,2]
[338879904,1726993840367,-500.0,0.00028797,2]
[338879905,1726993840379,-500.0,0.00028797,2]
[338879906,1726993840389,-500.0,0.00028797,2]
[338879907,1726993840399,-704.45,0.00028797,3]
[338879908,1726993840410,-500.0,0.00028797,2]
[338879909,1726993840423,-293.51074894,0.00028797,2]
[338879910,1726993840434,-500.0,0.00028797,2]
[338879911,1726993840445,-500.0,0.00028797,2]
[338879912,1726993840455,-500.0,0.00028797,2]
[338879913,1726993840466,-500.0,0.00028797,2]
[338879914,1726993840477,-500.0,0.00028797,2]
[338879915,1726993840491,-500.0,0.00028797,2]
[338879916,1726993840502,-500.0,0.00028797,2]
[338879917,1726993840514,-500.0,0.00028797,2]
[338879918,1726993840525,-500.0,0.00028797,2]
[338879919,1726993840536,-500.0,0.00028797,2]
[338879920,1726993840548,-500.0,0.00028797,2]
[338879921,1726993840559,-500.0,0.00028797,2]
[338879922,1726993840570,-426.0706331,0.00028797,2]
[338879923,1726993840581,-91025.48166034,0.00028798,15]
[338879950,1726993845700,-151.39195539,0.0002747,2]
[338879951,1726993845712,-18848.60804461,0.00028798,15]
[338879952,1726993845797,-222.01646633,0.00028798,15]
[338879953,1726993846095,-632.08,0.00028798,15]
[338879964,1726994236237,511.83625341,0.00021,30]
[338879967,1726994753145,-340.0,0.00016,2]
[338879968,1726994753167,-1894.103889,0.00021,2]